bitfinex-derivatives/quotes_BTCF0:USTF0_20250320
["timestamp","ask_amount","ask_price","bid_price","bid_amount"]
[1742471041927,0.7108583,85533.0,85532.0,0.12213513]
[1742471042127,0.4211583,85533.0,85532.0,0.12213513]
[1742471042331,0.4211583,85533.0,85532.0,0.00517543]
[1742471042534,0.4211583,85533.0,85532.0,0.06847543]
[1742471042841,0.4029583,85533.0,85532.0,0.03547543]
[1742471043130,0.4711583,85533.0,85532.0,0.03547543]
[1742471043330,0.4211583,85533.0,85532.0,0.03547543]
[1742471044329,0.4211583,85533.0,85532.0,0.00517543]
[1742471044530,0.4711583,85533.0,85532.0,0.00517543]
[1742471044930,0.4211583,85533.0,85532.0,0.00517543]
[1742471046340,0.4711583,85533.0,85532.0,0.00517543]
[1742471047229,0.8319583,85533.0,85532.0,0.03697543]
[1742471047631,0.8319583,85533.0,85532.0,0.00517543]
[1742471050034,0.7692583,85533.0,85532.0,0.00517543]
[1742471051142,0.6819583,85533.0,85532.0,0.12213513]
[1742471051335,0.6419583,85533.0,85532.0,0.12213513]
[1742471051734,0.6419583,85533.0,85532.0,0.18443513]
[1742471051931,0.6419583,85533.0,85532.0,0.06747543]
[1742471052733,0.7808583,85533.0,85532.0,0.03747543]
[1742471052938,0.8519583,85533.0,85532.0,0.03747543]
[1742471053232,0.7808583,85533.0,85532.0,0.03747543]
[1742471053648,0.8519583,85533.0,85532.0,0.03747543]
[1742471053847,0.8519583,85533.0,85532.0,0.07057543]
[1742471054647,0.7891583,85533.0,85532.0,0.07057543]
[1742471054851,0.7891583,85533.0,85532.0,0.18753513]
[1742471055548,0.7808583,85533.0,85532.0,0.03747543]
[1742471055752,0.7808583,85533.0,85532.0,0.15443513]
[1742471055953,0.7808583,85533.0,85532.0,0.18453513]
[1742471056445,0.7891583,85533.0,85532.0,0.18453513]
[1742471058049,0.8519583,85533.0,85532.0,0.18453513]
[1742471059250,0.7891583,85533.0,85532.0,0.18453513]
[1742471059451,0.8519583,85533.0,85532.0,0.18453513]
[1742471059853,0.7891583,85533.0,85532.0,0.18453513]
[1742471060350,0.8519583,85533.0,85532.0,0.18453513]
[1742471062348,0.7891583,85533.0,85532.0,0.18453513]
[1742471062555,0.8519583,85533.0,85532.0,0.18453513]
[1742471063446,0.9019583,85533.0,85532.0,0.18453513]
[1742471064052,0.8519583,85533.0,85532.0,0.18453513]
[1742471064750,0.8509583,85533.0,85532.0,0.18453513]
[1742471064954,0.9025383,85533.0,85532.0,0.21633513]
[1742471065652,0.9654383,85533.0,85532.0,0.21633513]
[1742471066950,0.8519583,85533.0,85532.0,0.21633513]
[1742471067556,0.6419583,85533.0,85532.0,0.21633513]
[1742471069860,0.5790583,85533.0,85532.0,0.21633513]
[1742471072361,0.6419583,85533.0,85532.0,0.21633513]
[1742471072757,0.5790583,85533.0,85532.0,0.21633513]
[1742471073055,0.5419583,85533.0,85532.0,0.21633513]
[1742471073262,4e-05,85534.0,85533.0,0.1169583]
[1742471073564,4e-05,85534.0,85533.0,0.1803583]
[1742471073763,0.031,85538.0,85537.0,0.1169529]
[1742471074459,0.00060001,85543.0,85542.0,0.116946]
[1742471074761,0.1493405,85546.0,85545.0,0.1169419]
[1742471075966,0.2493405,85546.0,85545.0,0.1169419]
[1742471077060,0.2493405,85546.0,85545.0,0.1285307]
[1742471077569,0.1493405,85546.0,85545.0,0.1285307]
[1742471078361,0.2493405,85546.0,85545.0,0.1285307]
[1742471079564,0.1493405,85546.0,85545.0,0.1285307]
[1742471080465,0.1782405,85546.0,85545.0,0.1169419]
[1742471080767,0.1864405,85546.0,85545.0,0.1169419]
[1742471080960,0.2187405,85546.0,85545.0,0.1169419]
[1742471081962,0.0324,85546.0,85545.0,0.2301819]
[1742471082263,0.1169318,85553.0,85548.0,0.1169378]
[1742471082855,0.1169343,85551.0,85548.0,0.1169378]
[1742471083061,4e-05,85550.0,85548.0,0.1169378]
[1742471085960,4e-05,85550.0,85548.0,0.1483378]
[1742471086163,4e-05,85550.0,85548.0,0.2614978]
[1742471086857,0.03134,85550.0,85548.0,0.2614978]
[1742471087069,0.03037543,85549.0,85548.0,0.2614978]
[1742471087864,0.03037543,85549.0,85548.0,0.1483378]
[1742471088864,0.14731183,85549.0,85548.0,0.1483378]
[1742471089067,0.03037543,85549.0,85548.0,0.1813378]
[1742471089266,0.06207543,85549.0,85548.0,0.1813378]
[1742471090866,0.17901183,85549.0,85548.0,0.1813378]
[1742471091264,0.18871908,85549.0,85548.0,0.1813378]
[1742471092091,0.28871908,85549.0,85548.0,0.1813378]
[1742471092886,0.29840405,85549.0,85548.0,0.1813378]
[1742471093593,0.19832827,85549.0,85548.0,0.1813378]
[1742471093793,0.27901183,85549.0,85548.0,0.1813378]
[1742471094586,0.28867855,85549.0,85548.0,0.1813378]
[1742471095291,0.18867855,85549.0,85548.0,0.1813378]
[1742471095893,0.28867855,85549.0,85548.0,0.1813378]
[1742471096487,0.28867717,85549.0,85548.0,0.1813378]
[1742471096695,0.27901183,85549.0,85548.0,0.1813378]
[1742471097898,0.27901183,85549.0,85548.0,0.1833378]
[1742471098096,0.27901183,85549.0,85548.0,0.1853378]
[1742471098502,0.27901183,85549.0,85548.0,0.1523378]
[1742471098704,0.17901183,85549.0,85548.0,0.1503378]
[1742471098890,0.27901183,85549.0,85548.0,0.1523378]
[1742471099300,0.27901183,85549.0,85548.0,0.1209378]
[1742471099695,0.21081183,85549.0,85548.0,0.1209378]
[1742471099891,0.27901183,85549.0,85548.0,0.1209378]
[1742471100299,0.21081183,85549.0,85548.0,0.1209378]
[1742471100502,0.27901183,85549.0,85548.0,0.1189378]
[1742471100702,0.27901183,85549.0,85548.0,0.1199378]
[1742471101199,0.27901183,85549.0,85548.0,0.1179378]
[1742471102300,0.76334906,85549.0,85548.0,0.001]
[1742471102502,0.1169556,85535.0,85534.0,0.38427068]
[1742471102801,0.2169556,85535.0,85534.0,0.32580498]
[1742471103116,0.0584761,85538.0,85534.0,0.32580498]
[1742471103117,0.0997,85536.0,85535.0,0.1169556]
[1742471103404,0.0997,85536.0,85535.0,0.1480556]
[1742471103700,0.2166542,85536.0,85535.0,0.1799556]
[1742471103909,0.3166542,85536.0,85535.0,0.1799556]
[1742471104594,0.2166542,85536.0,85535.0,0.1799556]
[1742471104795,0.3166542,85536.0,85535.0,0.1799556]
[1742471105099,0.2166542,85536.0,85535.0,0.1869556]
[1742471105299,0.3166542,85536.0,85535.0,0.1869556]
[1742471105603,0.2536542,85536.0,85535.0,0.1869556]
[1742471106391,0.3166542,85536.0,85535.0,0.1869556]
[1742471108203,0.3166542,85536.0,85535.0,0.1558556]
[1742471108605,0.5266542,85536.0,85535.0,0.007]
[1742471108803,0.4294142,85536.0,85535.0,0.007]
[1742471110198,0.3612142,85536.0,85535.0,0.1239556]
[1742471110404,0.4294142,85536.0,85535.0,0.007]
[1742471110795,0.1669556,85535.0,85534.0,0.3608]
[1742471111000,1.0162356,85535.0,85534.0,0.3608]
[1742471111207,1.1130356,85535.0,85534.0,0.3608]
[1742471111405,1.1130356,85535.0,85532.0,0.00017543]
[1742471111406,0.1169583,85533.0,85532.0,0.00017543]
[1742471111601,0.1169693,85525.0,85524.0,0.20884798]
[1742471111806,0.2585893,85525.0,85524.0,0.20884798]
[1742471112202,0.3266893,85525.0,85524.0,0.20884798]
[1742471112512,0.3726893,85525.0,85524.0,0.20884798]
[1742471113004,0.7334893,85525.0,85524.0,0.20884798]
[1742471113209,0.6705893,85525.0,85524.0,0.20884798]
[1742471113608,0.7334893,85525.0,85524.0,0.20884798]
[1742471114006,0.6623893,85525.0,85524.0,0.006]
[1742471114608,0.6623893,85525.0,85520.0,0.1169757]
[1742471114810,0.1169775,85519.0,85518.0,0.1169775]
[1742471115013,0.1458775,85519.0,85518.0,0.1169775]
[1742471115616,0.1540775,85519.0,85518.0,0.1169775]
[1742471115812,0.1855775,85519.0,85518.0,0.1496775]
[1742471116110,0.1825775,85519.0,85518.0,0.1496775]
[1742471116308,0.1484775,85519.0,85518.0,0.1496775]
[1742471116614,0.2484775,85519.0,85518.0,0.1496775]
[1742471117115,0.1265,85519.0,85518.0,0.1496775]
[1742471117413,0.2434775,85519.0,85518.0,1.6496775]
[1742471117603,0.1804775,85519.0,85518.0,1.6496775]
[1742471117910,0.1814775,85519.0,85518.0,0.1496775]
[1742471118120,0.0645,85519.0,85518.0,0.1496775]
[1742471118413,0.0655,85519.0,85518.0,0.1516775]
[1742471119418,0.2454775,85519.0,85518.0,0.1516775]
[1742471119605,0.1454775,85519.0,85518.0,0.1516775]
[1742471119805,0.1824775,85519.0,85518.0,0.1516775]
[1742471120114,0.0655,85519.0,85518.0,0.1516775]
[1742471120614,0.2454775,85519.0,85518.0,0.1516775]
[1742471121005,0.0655,85519.0,85518.0,0.1516775]
[1742471121519,0.2454775,85519.0,85518.0,0.1516775]
[1742471121714,0.1824775,85519.0,85518.0,0.5124775]
[1742471121916,0.2454775,85519.0,85518.0,0.5124775]
[1742471122705,0.1824775,85519.0,85518.0,0.5124775]
[1742471123111,0.1824775,85519.0,85518.0,0.1516775]
[1742471123308,0.1824775,85519.0,85518.0,0.5124775]
[1742471123518,0.2454775,85519.0,85518.0,0.1516775]
[1742471123718,0.1772775,85519.0,85518.0,0.1516775]
[1742471123919,0.1454775,85519.0,85518.0,0.1516775]
[1742471124122,0.2454775,85519.0,85518.0,0.1516775]
[1742471125118,0.2755775,85519.0,85518.0,0.0347]
[1742471125308,0.2755775,85519.0,85518.0,0.1516788]
[1742471125509,0.2755775,85519.0,85518.0,0.1820788]
[1742471127122,0.2125775,85519.0,85518.0,0.1820788]
[1742471127324,0.2755775,85519.0,85518.0,0.1820788]
[1742471128413,0.2073775,85519.0,85518.0,0.1820788]
[1742471128910,0.2755775,85519.0,85518.0,0.1820788]
[1742471129114,0.2073775,85519.0,85518.0,0.1820788]
[1742471129425,0.2755775,85519.0,85518.0,0.1820788]
[1742471129723,0.2124775,85519.0,85518.0,0.1820788]
[1742471130221,0.2755775,85519.0,85518.0,0.1820788]
[1742471130609,0.2755775,85519.0,85518.0,0.1493788]
[1742471130813,0.2073775,85519.0,85518.0,0.002]
[1742471131012,0.28522439,85519.0,85518.0,0.1189788]
[1742471131219,0.2073775,85519.0,85518.0,0.1189788]
[1742471131624,0.2755775,85519.0,85518.0,0.1520788]
[1742471132227,0.28521767,85519.0,85518.0,0.1520788]
[1742471132816,0.29475833,85519.0,85518.0,0.1520788]
[1742471133021,0.23165833,85519.0,85518.0,0.1520788]
[1742471133325,0.40739833,85519.0,85518.0,0.1520788]
[1742471134212,0.33919833,85519.0,85518.0,0.0351]
[1742471134517,0.33919833,85519.0,85518.0,0.1520788]
[1742471134518,0.40739833,85519.0,85518.0,0.1520788]
[1742471134713,0.33465816,85519.0,85518.0,0.1520788]
[1742471134921,0.34439611,85519.0,85518.0,0.1834788]
[1742471135128,0.40749611,85519.0,85518.0,0.1834788]
[1742471136122,0.41940071,85519.0,85518.0,0.0665]
[1742471136629,0.40966276,85519.0,85518.0,0.0665]
[1742471136926,0.4001221,85519.0,85518.0,0.0665]
[1742471137421,0.40983458,85519.0,85518.0,0.002]
[1742471137627,0.31853458,85519.0,85518.0,0.002]
[1742471137925,0.35711375,85519.0,85518.0,0.002]
[1742471138319,0.41951375,85519.0,85518.0,0.002]
[1742471138521,0.32821375,85519.0,85518.0,0.002]
[1742471139116,0.31951375,85519.0,85518.0,0.1189788]
[1742471139313,0.35131375,85519.0,85518.0,0.002]
[1742471139619,0.41951375,85519.0,85518.0,0.002]
[1742471139821,0.41951375,85519.0,85518.0,0.0636]
[1742471140025,0.35131375,85519.0,85518.0,0.0636]
[1742471140524,0.35131375,85519.0,85518.0,0.002]
[1742471140919,0.41951375,85519.0,85518.0,0.002]
[1742471141115,0.40760915,85519.0,85518.0,0.1189788]
[1742471141324,0.35320915,85519.0,85518.0,0.1803788]
[1742471141715,0.34349667,85519.0,85518.0,0.1803788]
[1742471141917,0.39789667,85519.0,85518.0,0.0634]
[1742471142121,0.3882175,85519.0,85518.0,0.0634]
[1742471142723,0.75881747,85519.0,85518.0,0.0332]
[1742471142924,0.32981747,85519.0,85518.0,0.002]
[1742471143230,0.69745917,85519.0,85518.0,0.002]
[1742471143725,0.81855917,85519.0,85518.0,0.002]
[1742471143926,0.80035917,85519.0,85518.0,0.002]
[1742471144131,0.35775917,85519.0,85518.0,0.002]
[1742471144331,0.28211917,85519.0,85518.0,0.0652]
[1742471144628,0.40810264,85519.0,85518.0,0.0652]
[1742471144822,0.45810264,85519.0,85518.0,0.002]
[1742471145330,0.39510264,85519.0,85518.0,0.002]
[1742471146032,0.39510264,85519.0,85518.0,0.0652]
[1742471146224,0.45810264,85519.0,85518.0,0.032]
[1742471146424,0.45810264,85519.0,85518.0,0.002]
[1742471146618,0.39510264,85519.0,85518.0,0.002]
[1742471146817,0.45810264,85519.0,85518.0,0.002]
[1742471147016,0.4483192,85519.0,85518.0,0.002]
[1742471147227,0.4385775,85519.0,85518.0,0.002]
[1742471147923,0.44824438,85519.0,85518.0,0.002]
[1742471148140,0.45792091,85519.0,85518.0,0.002]
[1742471148632,0.45796447,85519.0,85518.0,0.002]
[1742471148829,0.38686447,85519.0,85518.0,0.002]
[1742471149126,0.39496447,85519.0,85518.0,0.002]
[1742471149327,0.75576447,85519.0,85518.0,0.002]
[1742471150923,0.75576447,85519.0,85517.0,0.0646]
[1742471150924,0.1169788,85518.0,85517.0,0.0646]
[1742471151235,0.17659968,85518.0,85517.0,0.0646]
[1742471151532,0.21637621,85518.0,85517.0,0.0646]
[1742471152328,0.21837621,85518.0,85517.0,0.0646]
[1742471152534,0.2360788,85518.0,85517.0,0.0646]
[1742471152833,0.2360788,85518.0,85516.0,0.00017543]
[1742471152834,0.1169802,85517.0,85516.0,0.00017543]
[1742471153022,0.2669802,85517.0,85516.0,0.00017543]
[1742471153421,0.20841017,85517.0,85516.0,0.00017543]
[1742471153729,0.28622784,85517.0,85516.0,0.00017543]
[1742471154237,0.28822784,85517.0,85516.0,0.00017543]
[1742471155832,0.21712784,85517.0,85516.0,0.00017543]
[1742471156537,0.28822784,85517.0,85516.0,0.00017543]
[1742471156734,0.28826023,85517.0,85516.0,0.00017543]
[1742471157335,0.27859787,85517.0,85516.0,0.00017543]
[1742471159437,0.27859787,85517.0,85516.0,0.03207543]
[1742471160331,0.2689802,85517.0,85516.0,0.03207543]
[1742471162229,0.2059802,85517.0,85516.0,0.00017543]
[1742471162425,0.2689802,85517.0,85516.0,0.00017543]
[1742471162625,0.2059802,85517.0,85516.0,0.00017543]
[1742471163025,0.2689802,85517.0,85516.0,0.00017543]
[1742471163827,0.2622802,85517.0,85516.0,0.00017543]
[1742471164229,0.116998,85504.0,85503.0,0.1475994]
[1742471164441,0.329958,85504.0,85503.0,0.1475994]
[1742471164740,0.266958,85504.0,85503.0,0.0306]
[1742471165128,0.329958,85504.0,85503.0,0.1475994]
[1742471165335,0.266958,85504.0,85503.0,0.1793994]
[1742471165646,0.329958,85504.0,85503.0,0.0644]
[1742471165943,0.329958,85504.0,85503.0,0.1813994]
[1742471166134,0.360758,85504.0,85503.0,0.0644]
[1742471166443,0.297758,85504.0,85503.0,0.1813994]
[1742471166638,0.360758,85504.0,85503.0,0.1813994]
[1742471167041,0.360758,85504.0,85503.0,0.0644]
[1742471167444,0.372308,85504.0,85503.0,0.1813994]
[1742471167742,0.309308,85504.0,85503.0,0.0644]
[1742471167937,0.372308,85504.0,85503.0,0.0644]
[1742471168137,0.372308,85504.0,85503.0,0.1813994]
[1742471168338,0.372308,85504.0,85503.0,0.0644]
[1742471168934,0.341708,85504.0,85503.0,0.0644]
[1742471169530,0.404708,85504.0,85503.0,0.0644]
[1742471170540,0.484708,85504.0,85503.0,0.0644]
[1742471172044,0.534708,85504.0,85503.0,0.0338]
[1742471176042,0.534708,85504.0,85503.0,0.002]
[1742471176352,0.584708,85504.0,85503.0,0.002]
[1742471176645,0.493408,85504.0,85503.0,0.002]
[1742471176847,0.584708,85504.0,85503.0,0.002]
[1742471177238,0.516508,85504.0,85503.0,0.002]
[1742471177443,0.584708,85504.0,85503.0,0.002]
[1742471177745,0.774708,85504.0,85503.0,0.002]
[1742471178245,0.706508,85504.0,85503.0,0.002]
[1742471178448,0.504708,85504.0,85503.0,0.002]
[1742471178645,0.784708,85504.0,85503.0,0.002]
[1742471181554,0.744708,85504.0,85503.0,0.002]
[1742471182452,0.1170076,85497.0,85496.0,0.0621]
[1742471182650,0.117024,85485.0,85484.0,0.20884798]
[1742471182855,0.578764,85485.0,85484.0,0.20884798]
[1742471183047,0.608564,85485.0,85484.0,0.20884798]
[1742471183352,0.608604,85485.0,85484.0,0.20884798]
[1742471183556,0.598904,85485.0,85484.0,0.20884798]
[1742471183753,0.61050185,85485.0,85484.0,0.20884798]
[1742471183956,0.67450185,85485.0,85484.0,0.20884798]
[1742471184360,0.67450185,85485.0,85484.0,0.20984798]
[1742471184657,0.67450185,85485.0,85484.0,0.001]
[1742471185258,0.1170349,85477.0,85476.0,0.00017543]
[1742471185558,0.9306749,85477.0,85476.0,0.03347543]
[1742471185957,0.9306749,85477.0,85476.0,0.06407543]
[1742471186159,0.1170445,85470.0,85469.0,0.27982726]
[1742471186457,1.3997245,85470.0,85469.0,0.27982726]
[1742471187345,1.2868445,85470.0,85469.0,0.27982726]
[1742471187549,0.8498,85470.0,85469.0,0.39687316]
[1742471187760,0.11288,85475.0,85474.0,0.1170391]
[1742471188056,0.52118,85484.0,85483.0,0.1170267]
[1742471188456,0.62118,85484.0,85483.0,0.1170267]
[1742471188650,0.62118,85484.0,85483.0,0.16068165]
[1742471188852,0.7382054,85484.0,85483.0,0.1492267]
[1742471189053,0.6253254,85484.0,85483.0,0.1492267]
[1742471189262,0.6253254,85484.0,85483.0,0.0322]
[1742471189570,0.5571254,85484.0,85483.0,0.0322]
[1742471189855,0.2170254,85484.0,85483.0,0.1492267]
[1742471190062,0.1257254,85484.0,85483.0,0.1492267]
[1742471190451,0.1267254,85484.0,85483.0,0.1492267]
[1742471191161,0.2170254,85484.0,85483.0,0.0322]
[1742471191351,0.1488254,85484.0,85483.0,0.0945]
[1742471191552,0.3298654,85484.0,85483.0,0.2115267]
[1742471191752,0.2668654,85484.0,85483.0,0.2115267]
[1742471192763,0.2678654,85484.0,85483.0,0.2115267]
[1742471193164,0.3308654,85484.0,85483.0,0.2115267]
[1742471193351,0.2626654,85484.0,85483.0,0.0945]
[1742471193565,0.4114254,85484.0,85483.0,0.0945]
[1742471193851,0.4114254,85484.0,85483.0,0.0625]
[1742471193852,0.3921254,85484.0,85483.0,0.0625]
[1742471194756,0.4421254,85484.0,85483.0,0.0625]
[1742471194954,0.3739254,85484.0,85483.0,0.0625]
[1742471195161,0.4410254,85484.0,85483.0,0.0322]
[1742471195366,0.4439254,85484.0,85483.0,0.0322]
[1742471195663,0.4491254,85484.0,85483.0,0.0322]
[1742471196462,0.4501254,85484.0,85483.0,0.0322]
[1742471196864,0.4631254,85484.0,85483.0,0.0322]
[1742471197063,0.4501254,85484.0,85483.0,0.0322]
[1742471197456,0.4449254,85484.0,85483.0,0.0322]
[1742471197661,0.5131254,85484.0,85483.0,0.0322]
[1742471198265,0.5151254,85484.0,85483.0,0.0322]
[1742471198766,0.1170432,85471.0,85468.0,0.0585236]
[1742471198960,0.1170541,85463.0,85457.0,0.50956826]
[1742471199167,0.1170541,85463.0,85460.0,0.0700134]
[1742471199577,0.0585263,85465.0,85462.0,0.5363826]
[1742471199872,0.117049,85467.0,85466.0,0.1170486]
[1742471200072,0.116049,85467.0,85466.0,0.1476486]
[1742471203372,0.116049,85467.0,85466.0,0.1486486]
[1742471204169,0.153049,85467.0,85466.0,0.1486486]
[1742471204572,0.185549,85467.0,85466.0,0.1486486]
[1742471206677,0.210549,85467.0,85466.0,0.1486486]
[1742471206974,0.00017543,85471.0,85466.0,0.1486486]
[1742471206975,0.00017543,85471.0,85470.0,0.1170445]
[1742471207278,0.00017543,85471.0,85470.0,0.4778445]
[1742471207673,0.11721863,85471.0,85470.0,0.4778445]
[1742471207873,0.11721863,85471.0,85470.0,0.5105445]
[1742471209080,0.14811863,85471.0,85470.0,0.5105445]
[1742471212583,0.18501863,85471.0,85470.0,0.5105445]
[1742471215176,0.14811863,85471.0,85470.0,0.5105445]
[1742471215377,0.03107543,85471.0,85470.0,0.5105445]
[1742471215781,0.03107543,85471.0,85470.0,0.5437445]
[1742471215980,0.0303,85477.0,85476.0,0.1170363]
[1742471216785,0.0303,85477.0,85476.0,0.1817363]
[1742471218283,0.1473349,85477.0,85476.0,0.1817363]
[1742471219290,0.1777349,85477.0,85476.0,0.1817363]
[1742471219492,0.0607,85477.0,85476.0,0.1817363]
[1742471219886,0.1777349,85477.0,85476.0,0.1817363]
[1742471223295,0.1896549,85477.0,85476.0,0.1817363]
[1742471223492,0.1896549,85477.0,85476.0,0.1824963]
[1742471225588,0.2185549,85477.0,85476.0,0.1824963]
[1742471226190,0.2896549,85477.0,85476.0,0.1177963]
[1742471226390,0.2896549,85477.0,85476.0,0.00076]
[1742471226585,0.1896549,85477.0,85476.0,0.00076]
[1742471226785,0.1896549,85477.0,85476.0,0.1177963]
[1742471226988,0.2896549,85477.0,85476.0,0.1177963]
[1742471227700,0.2777349,85477.0,85476.0,0.1177963]
[1742471227889,0.2777349,85477.0,85476.0,0.1170363]
[1742471228195,0.2896549,85477.0,85476.0,0.1170363]
[1742471228383,0.2896549,85477.0,85476.0,0.1177963]
[1742471229388,0.2214549,85477.0,85476.0,0.1177963]
[1742471229596,0.2896549,85477.0,85476.0,0.1177963]
[1742471230995,0.2896549,85477.0,85476.0,0.00076]
[1742471232101,0.4023349,85477.0,85476.0,0.00076]
[1742471232592,0.3904149,85477.0,85476.0,0.00076]
[1742471233100,0.1170459,85469.0,85468.0,0.2067693]
[1742471233301,0.2170459,85469.0,85468.0,0.2067693]
[1742471233487,0.1170459,85469.0,85468.0,0.2075293]
[1742471233686,0.2170459,85469.0,85468.0,0.2075293]
[1742471233896,0.3122459,85469.0,85468.0,0.2075293]
[1742471234097,0.2122459,85469.0,85468.0,0.2075293]
[1742471237291,0.1815459,85469.0,85468.0,0.2075293]
[1742471237892,0.1815459,85469.0,85468.0,0.2067693]
[1742471238401,0.1934659,85469.0,85468.0,0.2075293]
[1742471239695,0.2252659,85469.0,85468.0,0.2075293]
[1742471239902,0.1934659,85469.0,85468.0,0.2075293]
[1742471240403,0.07642,85469.0,85468.0,0.2075293]
[1742471241303,0.1934659,85469.0,85468.0,0.2075293]
[1742471242587,0.1815459,85469.0,85468.0,0.2075293]
[1742471242999,0.1815459,85469.0,85468.0,0.48659656]
[1742471243202,0.1934659,85469.0,85468.0,0.48659656]
[1742471243396,0.1934659,85469.0,85468.0,0.48835656]
[1742471244699,0.1934659,85469.0,85468.0,0.48935656]
[1742471245604,0.2934659,85469.0,85468.0,0.48935656]
[1742471245904,0.2934659,85469.0,85468.0,0.2095293]
[1742471246689,0.2934659,85469.0,85468.0,0.2085293]
[1742471247496,0.2021659,85469.0,85468.0,0.2085293]
[1742471247704,0.1902459,85469.0,85468.0,0.2085293]
[1742471247899,0.1902459,85469.0,85468.0,0.2077693]
[1742471248107,0.2021659,85469.0,85468.0,0.2077693]
[1742471248401,0.2021659,85469.0,85468.0,0.2085293]
[1742471248997,0.2021659,85469.0,85468.0,0.0914834]
[1742471249192,0.2021659,85469.0,85468.0,0.0602834]
[1742471249897,0.2021659,85469.0,85468.0,0.0924834]
[1742471250305,0.2021659,85469.0,85468.0,0.03396]
[1742471250505,0.2934659,85469.0,85468.0,0.03396]
[1742471251698,0.2021659,85469.0,85468.0,0.1510073]
[1742471252408,0.2021659,85469.0,85468.0,0.1841073]
[1742471252899,0.2934659,85469.0,85468.0,0.1841073]
[1742471253096,0.2934659,85469.0,85468.0,0.06706]
[1742471253303,0.2815459,85469.0,85468.0,0.06706]
[1742471253505,0.2815459,85469.0,85468.0,0.0663]
[1742471253806,0.2934659,85469.0,85468.0,0.0663]
[1742471254005,0.2934659,85469.0,85468.0,0.1841073]
[1742471254204,0.4062659,85469.0,85468.0,0.1841073]
[1742471254407,0.3149659,85469.0,85468.0,0.1841073]
[1742471256198,0.4062659,85469.0,85468.0,0.1841073]
[1742471257009,0.41726607,85469.0,85468.0,0.03396]
[1742471257211,0.4062659,85469.0,85468.0,0.03396]
[1742471257606,0.3943459,85469.0,85468.0,0.00176]
[1742471258012,0.3943459,85469.0,85468.0,0.001]
[1742471258210,0.776964,85469.0,85468.0,0.001]
[1742471258412,0.776964,85469.0,85468.0,0.00176]
[1742471258603,0.7659659,85469.0,85468.0,0.00176]
[1742471258799,0.8370659,85469.0,85468.0,0.00176]
[1742471259406,0.1170555,85462.0,85461.0,0.00017543]
[1742471259615,0.3998155,85462.0,85461.0,0.00017543]
[1742471260518,0.41080766,85462.0,85461.0,0.00017543]
[1742471261318,0.46080766,85462.0,85461.0,0.03037543]
[1742471261518,0.46182923,85462.0,85461.0,0.03037543]
[1742471261716,0.4498155,85462.0,85461.0,0.03037543]
[1742471261919,0.4498155,85462.0,85461.0,0.14743233]
[1742471262112,0.4498155,85462.0,85461.0,0.06117543]
[1742471262510,0.4498155,85462.0,85461.0,0.17823233]
[1742471262713,0.4498155,85462.0,85461.0,0.06117543]
[1742471264227,0.3370555,85462.0,85461.0,0.06117543]
[1742471264422,0.4498955,85462.0,85461.0,0.06117543]
[1742471264727,0.3868955,85462.0,85461.0,0.06117543]
[1742471265027,0.4498955,85462.0,85461.0,0.06117543]
[1742471265222,0.3816955,85462.0,85461.0,0.06117543]
[1742471265422,0.4498955,85462.0,85461.0,0.06117543]
[1742471265620,0.3868955,85462.0,85461.0,0.17823233]
[1742471267422,0.4498955,85462.0,85461.0,0.17823233]
[1742471268030,0.4498955,85462.0,85461.0,0.06117543]
[1742471268718,0.4498955,85462.0,85461.0,0.17823233]
[1742471269730,0.3868955,85462.0,85461.0,0.17823233]
[1742471271030,0.2739555,85462.0,85461.0,0.17823233]
[1742471271231,0.4496955,85462.0,85461.0,0.17823233]
[1742471271622,0.3865955,85462.0,85461.0,0.17823233]
[1742471271823,0.4496955,85462.0,85461.0,0.17823233]
[1742471273418,0.3814955,85462.0,85461.0,0.17823233]
[1742471273625,0.4496955,85462.0,85461.0,0.17823233]
[1742471274134,0.3814955,85462.0,85461.0,0.17823233]
[1742471274333,0.4496955,85462.0,85461.0,0.00017543]
[1742471274635,0.39247488,85462.0,85461.0,0.00017543]
[1742471274829,0.46067488,85462.0,85461.0,0.00017543]
[1742471276742,0.4496955,85462.0,85461.0,0.00017543]
[1742471277034,0.4996955,85462.0,85461.0,0.00017543]
[1742471277331,0.4996955,85462.0,85452.0,0.0329]
[1742471277332,0.2170719,85450.0,85449.0,0.3608]
[1742471277533,0.3296719,85450.0,85449.0,0.4778733]
[1742471277922,0.3296719,85450.0,85449.0,0.5404733]
[1742471278125,0.3948719,85450.0,85449.0,0.5404733]
[1742471278639,0.3958719,85450.0,85449.0,0.5404733]
[1742471279136,0.3968719,85450.0,85449.0,0.5404733]
[1742471279529,0.3968719,85450.0,85449.0,0.55195872]
[1742471279730,0.2475,85450.0,85449.0,0.55195872]
[1742471279932,0.1519719,85450.0,85449.0,0.55195872]
[1742471280439,0.0349,85450.0,85449.0,0.55195872]
[1742471280640,0.1519719,85450.0,85449.0,0.55195872]
[1742471281337,0.002,85450.0,85449.0,0.55195872]
[1742471285938,0.0323,85450.0,85449.0,0.55195872]
[1742471287146,0.1493719,85450.0,85449.0,0.55195872]
[1742471287342,0.0323,85450.0,85449.0,0.55195872]
[1742471287537,0.1493719,85450.0,85449.0,0.55195872]
[1742471288139,0.0323,85450.0,85449.0,0.55195872]
[1742471288542,0.1493719,85450.0,85449.0,0.55195872]
[1742471288736,0.1807719,85450.0,85449.0,0.55195872]
[1742471288940,0.0637,85450.0,85449.0,0.55195872]
[1742471291138,4e-05,85462.0,85461.0,0.1170569]
[1742471291343,4e-05,85462.0,85461.0,0.4778569]
[1742471291757,0.1790473,85468.0,85466.0,0.11705]
[1742471291950,0.03,85468.0,85467.0,0.1810486]
[1742471292338,4e-05,85471.0,85467.0,0.1810486]
[1742471292339,4e-05,85471.0,85470.0,0.1170445]
[1742471292842,0.03,85473.0,85472.0,0.1170418]
[1742471293155,0.03,85473.0,85472.0,0.4778418]
[1742471293556,0.03,85473.0,85472.0,0.5423418]
[1742471293758,0.24553356,85486.0,85479.0,0.0585158]
[1742471293954,0.11531253,85486.0,85485.0,0.477824]
[1742471294455,0.11531253,85486.0,85485.0,0.757824]
[1742471294456,0.01551253,85486.0,85485.0,0.757824]
[1742471294651,0.01551253,85486.0,85485.0,0.789224]
[1742471294853,3e-08,85486.0,85485.0,2.30111862]
[1742471295153,3e-08,85486.0,85485.0,2.45111862]
[1742471295358,0.00017553,85494.0,85485.0,2.45111862]
[1742471295359,0.00017553,85494.0,85493.0,0.117013]
[1742471295663,0.00017553,85494.0,85493.0,0.850533]
[1742471296549,0.00975029,85494.0,85493.0,0.850533]
[1742471296748,0.01375029,85494.0,85493.0,0.850533]
[1742471297644,0.00417553,85494.0,85493.0,0.915333]
[1742471299370,0.36952839,85537.0,85501.0,0.0585005]
[1742471299572,0.00060001,85522.0,85513.0,0.8385857]